Cogmind - Beta 13 --- EXPLORER MODE // 2024.04.07 @ 01:59:38 Player: uwuna Result: Self-destructed Performance ------------- Evolutions (8) 4000 Regions Visited (21) 4200 Robots Destroyed (340) 1700 Value Destroyed (17792) 17792 Prototype IDs (34) 680 Alien Tech Used (0) 0 Bonus (16694) 16694 TOTAL SCORE: 45066 Bonus ------- High Alert Combat Kills 3282 Follower Combat Kills 9671 Met Imprinter 300 Was Imprinted 300 Met Warlord at Base 500 MAIN.C Attacked Warlord 500 Warlord Defense Kills 3326 Built Enhanced Grunts 300 Met R17 at Cetus 500 Scanned by Researcher 500 Friendly Fire -2485 Cogmind --------- Core Integrity 71/1450 Matter 18/300 Energy 277/600 System Corruption 9% Temperature Cool (0) Movement Treading (161) Location -2/Testing Parts ------- > --- POWER (2) -------- Quantum Reactor Quantum Reactor > --- PROPULSION (6) --- Advanced Heavy Treads Improved Heavy Siege Treads Centrium Heavy Treads > --- UTILITY (12) ----- Advanced Heat Sink Improved Phase Shifter Advanced Phase Shifter Backup Plating VII Improved Medium Armor Plating > --- WEAPON (4) ------- Linear Accelerator > --- INVENTORY (5) ---- Centrium Heavy Treads Advanced Heat Sink Hardcell Cannon Peak State ------------ > --- POWER ------------ Reinforced Antimatter Reactor Quantum Reactor > --- PROPULSION ------- Centrium Heavy Treads Centrium Heavy Treads Advanced Heavy Siege Treads > --- UTILITY ---------- Advanced Cooling System Huge Storage Unit Enhanced Optical Array Advanced Launcher Guidance Computer Weapon Mount Centrium Medium Armor Plating Centrium Medium Armor Plating Centrium Medium Armor Plating Heavy Reflective Plating Zionite Shade Armor Force Field > --- WEAPON ----------- Linear Accelerator Linear Accelerator Linear Accelerator Linear Accelerator > --- INVENTORY -------- Neutrino Core Reinforced Fission Core Armored Medium Treads Centrium Heavy Treads Advanced Heat Sink Advanced Coolant Injector Energy Well Advanced Matter Compressor Advanced Sensor Array Improved Particle Charger Weapon Cycler Improved Phase Shifter Improved Medium Armor Plating Improved Medium Armor Plating Advanced Component Analysis Suite Hardcell Cannon Hardcell Cannon Rocket Array Rocket Array [Rating: 194] Favorites ----------- Power Quantum Reactor Engine Angular Momentum Engine Power Core Light Nuclear Core Reactor Quantum Reactor Propulsion Light Treads Treads Light Treads Utility Centrium Medium Armor Plating Device Thermal Shield Storage Huge Storage Unit Processor Targeting Computer Hackware Authchip [R/Combat] Protection Centrium Medium Armor Plating Weapon Linear Accelerator Energy Gun Beam Rifle Energy Cannon Heavy Plasma Cannon Ballistic Gun Gauss Rifle Ballistic Cannon Linear Accelerator Launcher Rocket Array Build | -11 -10 -10 -9 -9 -7 -6 -6 -6 -6 -6 -6 -5 -4 -4 -4 -4 -3 -3 -3 -2 -2 ------- Run | Yrd Mat Min Mat Min Zio Pro Fac Ext Cet Arc Hub Fac Fac Upp Upp War Pro Res Arm Res Tes Slots Evolved 17 | . 1 . 2 . . . 6 . . . . 2 2 . . . . 2 . 2 . Power 1 | . . . . . . . 1 . . . . . . . . . . . . . . Propulsion 4 | . 1 . 1 . . . 2 . . . . . . . . . . . . . . Utility 10 | . . . 1 . . . 2 . . . . 2 2 . . . . 2 . 1 . Weapon 2 | . . . . . . . 1 . . . . . . . . . . . . 1 . Parts Attached 172 | 7 4 1 5 . . 6 23 6 7 2 2 21 3 2 8 9 3 16 16 11 20 Power 14 | 1 . 1 . . . 2 2 . 2 . . 2 . . . 1 . . . 1 2 Engine 3 | 1 . . . . . 2 . . . . . . . . . . . . . . . Core 7 | . . 1 . . . . 2 . 1 . . 2 . . . . . . . 1 . Reactor 4 | . . . . . . . . . 1 . . . . . . 1 . . . . 2 Propulsion 26 | 2 1 . 1 . . 2 8 3 2 . . 3 . . . . . 1 1 1 1 Treads 26 | 2 1 . 1 . . 2 8 3 2 . . 3 . . . . . 1 1 1 1 Leg . | . . . . . . . . . . . . . . . . . . . . . . Wheel . | . . . . . . . . . . . . . . . . . . . . . . Hover . | . . . . . . . . . . . . . . . . . . . . . . Flight . | . . . . . . . . . . . . . . . . . . . . . . Utility 59 | 2 1 . 2 . . . 6 3 2 2 1 7 3 . 2 . . 8 9 2 9 Device 28 | . . . . . . . 4 2 2 1 . 3 1 . 1 . . 4 5 1 4 Storage 3 | 1 1 . . . . . . . . . 1 . . . . . . . . . . Processor 5 | 1 . . . . . . 1 . . . . 1 . . 1 . . . 1 . . Hackware 2 | . . . . . . . . . . . . . . . . . . . 2 . . Protection 21 | . . . 2 . . . 1 1 . 1 . 3 2 . . . . 4 1 1 5 Artifact . | . . . . . . . . . . . . . . . . . . . . . . Weapon 73 | 2 2 . 2 . . 2 7 . 1 . 1 9 . 2 6 8 3 7 6 7 8 Energy Gun 9 | 1 2 . 2 . . 1 2 . . . . 1 . . . . . . . . . Energy Cannon 12 | . . . . . . 1 4 . 1 . . 5 . . 1 . . . . . . Ballistic Gun 2 | 1 . . . . . . . . . . 1 . . . . . . . . . . Ballistic Cannon 27 | . . . . . . . . . . . . . . 2 1 4 3 5 4 4 4 Launcher 23 | . . . . . . . 1 . . . . 3 . . 4 4 . 2 2 3 4 Special Weapon . | . . . . . . . . . . . . . . . . . . . . . . Impact Weapon . | . . . . . . . . . . . . . . . . . . . . . . Slashing Weapon . | . . . . . . . . . . . . . . . . . . . . . . Piercing Weapon . | . . . . . . . . . . . . . . . . . . . . . . Special Melee Weapon . | . . . . . . . . . . . . . . . . . . . . . . Unidentified Prototypes 1 | . . . . . . . . . 1 . . . . . . . . . . . . Corrupted Parts 1 | . . . . . . . . . . . . 1 . . . . . . . . . System Corruption 2 | . . . . . . . . . . . . 2 . . . . . . . . . Parts Lost 26 | . . . . . . . 2 2 1 . 1 . . . . . . 2 . . 18 Power 1 | . . . . . . . . . . . . . . . . . . . . . 1 Propulsion 4 | . . . . . . . 1 1 1 . . . . . . . . . . . 1 Utility 16 | . . . . . . . 1 1 . . . . . . . . . 2 . . 12 Weapon 5 | . . . . . . . . . . . 1 . . . . . . . . . 4 Highest Loss Streak 9 | . . . . . . . 1 1 1 . 1 . . . . . . 2 . . 9 To Critical Strikes 5 | . . . . . . . . . 1 . . . . . . . . . . . 4 Average Slot Usage (%) 92 | . 96 100 100 100 100 100 99 99 98 93 90 90 90 90 90 90 90 84 81 82 80 Engine 1 | . 12 4 . . . 9 3 . . . . . . . . . . . . . . Core 5 | . . 7 10 10 10 . 8 12 7 6 6 5 5 5 5 5 . . . 1 3 Reactor 3 | . . . . . . . . . 4 6 6 5 5 5 5 5 10 9 9 5 4 Treads 27 | . 33 37 40 40 40 40 36 36 35 31 31 24 20 20 20 20 20 13 13 12 11 Device 10 | . . . . . . . 9 17 23 24 18 16 15 15 13 15 15 12 13 16 15 Storage 6 | . 12 12 10 10 10 10 6 6 6 6 6 5 5 5 5 5 5 4 4 4 3 Processor 7 | . 12 12 10 10 10 10 11 . . . . 5 5 5 8 10 10 7 5 8 4 Protection 11 | . . . 10 10 10 10 2 5 1 . 6 10 20 20 18 15 15 21 19 16 19 Energy Gun 6 | . 21 25 20 20 20 10 5 . . . . . . . . . . . . . . Energy Cannon 5 | . . . . . . 9 9 18 18 18 14 15 15 6 5 . . . . . . Ballistic Cannon 4 | . . . . . . . . . . . . . . 8 7 9 14 12 12 15 10 Naked Turns . | . . . . . . . . . . . . . . . . . . . . . . Heaviest Build 227 | 18 91 91 96 96 96 109 127 132 147 153 153 172 181 181 179 178 182 216 219 223 227 Greatest Support 240 | 40 60 60 80 80 80 80 160 170 190 190 190 214 214 214 214 214 214 240 240 240 235 Greatest Overweight (x) 1 | . 1 1 1 1 1 1 . . 1 . . . . . . . . . . . . Average Overweight (x) . | . . 1 1 1 1 1 . . . . . . . . . . . . . . . Largest Inventory Capacity 25 | 10 25 25 25 25 25 25 25 25 25 25 25 25 25 25 25 25 25 25 25 25 25 Average Capacity 24 | 8 17 25 25 25 25 25 25 25 25 25 25 25 25 25 25 25 25 25 25 25 24 Most Carried 25 | 6 14 17 23 23 25 25 25 25 25 25 25 25 25 25 24 25 25 25 25 25 25 Average Carried 22 | 3 9 15 18 23 24 24 22 22 24 24 24 23 24 23 23 24 24 23 23 21 22 Final Capacity 25 | 10 25 25 25 25 25 25 25 25 25 25 25 25 25 25 25 25 25 25 25 25 5 Final Carried 25 | 4 14 17 23 23 25 24 25 24 25 24 25 25 25 23 24 25 25 24 22 25 4 Class Distribution -------------------- 38% | Scavenger-Tank 30% | Hacker-Mutant 17% | Hacker-Tank 7% | Hacker-Gunner Dominant Class ---------------- Hacker-Mutant | -10/Materials Hacker-Mutant | -10/Mines Hacker-Mutant | -9/Materials Hacker-Mutant | -9/Mines Hacker-Mutant | -7/Zion Hacker-Mutant | -6/Proximity Caves Hacker-Gunner | -6/Factory Hacker-Tank | -6/Extension Hacker-Tank | -6/Cetus Commander-Tank | -6/Archives Scavenger-Tank | -6/Hub_04(d) Scavenger-Tank | -5/Factory Scavenger-Tank | -4/Factory Scavenger-Tank | -4/Upper Caves Scavenger-Tank | -4/Upper Caves Scavenger-Tank | -4/Warlord Scavenger-Tank | -3/Proximity Caves Scavenger-Tank | -3/Research Scavenger-Tank | -3/Armory Hacker-Tank | -2/Research Hacker-Tank | -2/Testing Resources | -11 -10 -10 -9 -9 -7 -6 -6 -6 -6 -6 -6 -5 -4 -4 -4 -4 -3 -3 -3 -2 -2 ----------- Run | Yrd Mat Min Mat Min Zio Pro Fac Ext Cet Arc Hub Fac Fac Upp Upp War Pro Res Arm Res Tes Matter Collected 10530 | 237 133 10 50 . . 126 431 92 75 10 56 254 30 139 219 716 660 1373 1568 2075 2276 Remotely . | . . . . . . . . . . . . . . . . . . . . . . Salvage Created 12253 | . 363 178 840 . . 66 1670 763 399 124 393 1019 538 262 370 684 674 632 635 1308 1335 Parts 483 | . 32 9 40 . . 3 61 33 14 6 18 31 28 5 7 19 28 28 25 59 37 Haulers Intercepted 3 | . 1 . . . . . . . . . . . . . . . . 1 . 1 . Recyclers Shooed 3 | . . . 1 . . . . . . . . . 1 . . . . . . 1 . Parts Field Recycled . | . . . . . . . . . . . . . . . . . . . . . . Retrieved Matter . | . . . . . . . . . . . . . . . . . . . . . . Parts Self-Destructed . | . . . . . . . . . . . . . . . . . . . . . . Prevented . | . . . . . . . . . . . . . . . . . . . . . . Kills | -11 -10 -10 -9 -9 -7 -6 -6 -6 -6 -6 -6 -5 -4 -4 -4 -4 -3 -3 -3 -2 -2 ------- Run | Yrd Mat Min Mat Min Zio Pro Fac Ext Cet Arc Hub Fac Fac Upp Upp War Pro Res Arm Res Tes Combat Hostiles Destroyed 280 | . 10 4 22 . . 3 37 10 6 1 5 18 13 5 11 22 16 15 21 27 34 Guns 49 | . 10 4 22 . . 2 10 . . . . 1 . . . . . . . . . Cannons 155 | . . . . . . 1 11 9 6 . 3 12 8 4 2 6 16 14 20 25 18 AOE 60 | . . . . . . . 8 . . . . 4 3 . 9 16 . 1 1 2 16 Classes Destroyed 23 | . 5 1 1 . . . 4 2 1 . . 2 . . . 2 . . 1 1 3 Worker 11 | . 2 . . . . . . . . . 1 1 1 . . . . . . 3 3 Builder 14 | . . . . . . . . 1 . . . . 2 . . . . 2 . 4 5 Tunneler 2 | . . . . . . . . . . . . 1 . . . . . . . 1 . Hauler 3 | . 1 . . . . . . . . . . . . . . . . 1 . 1 . Recycler 4 | . . 1 . . . . . 1 . . . . . . . . . . . 1 1 Mechanic 1 | . . . . . . . . . . . . . . . . . . . . . 1 Operator 5 | . . . . . . . 1 . . 1 . 1 1 . . . . . . . 1 Watcher 13 | . 2 . 1 . . . 2 . . . 1 1 1 . . . . . . 5 . Swarmer 61 | . 5 2 7 . . 3 13 . . . . 4 8 1 3 . 8 2 2 3 . Saboteur 2 | . . . . . . . . . . . . . . . . . . . 2 . . Grunt 96 | . 5 2 8 . . . 14 4 1 . 2 7 1 1 4 14 4 4 2 5 18 Brawler 7 | . . . . . . . 1 . . . . . . 1 . . . . 1 1 3 Duelist 4 | . . . . . . . . . 1 . . . . . . . . 1 1 . 1 Protector 5 | . . . . . . . . . . . . 1 . . . 2 . . 1 . 1 Researcher 3 | . . . . . . . . . . . . . . . . . . . . . 3 Sentry 33 | . . . 7 . . . 3 4 . 1 3 3 1 1 1 . 1 3 3 2 . Specialist 3 | . . . . . . . . . . . . . . . . 1 . . 1 . 1 Hunter 24 | . . . . . . . 2 . 1 . . 2 2 1 2 . . 2 2 5 5 Programmer 30 | . . . . . . . 4 . . . . 2 1 . . . 2 3 5 10 3 Behemoth 6 | . . . . . . . . 2 . . . . . . 1 1 1 . 1 . . Cetus Guard 3 | . . . . . . . . . 3 . . . . . . . . . . . . Enhanced Grunt 2 | . . . . . . . . . . . . 2 . . . . . . . . . Striker 6 | . . . . . . . . . . . . . . . . 4 . . . . 2 Z-Heavy 1 | . . . . . . . . . . . . . . . . . . . . . 1 Martyr 1 | . . . . . . . . . . . . . . . . . . . . 1 . Best Kill Streak 13 | . 4 3 4 . . 3 4 5 2 1 2 4 7 3 5 13 5 3 4 13 11 Combat Bots Only 13 | . 3 2 4 . . 3 3 4 2 1 2 3 4 3 5 13 5 3 4 4 9 Max Kills in Single Turn 8 | . 1 1 1 . . 1 3 2 1 1 1 5 6 1 4 6 2 3 1 8 6 Gunslinging 1 | . . . . . . . 1 . . . . . . . . . . . . . . Exploded 6 | . . . . . . . 2 . . . . 3 3 . 4 6 . 1 1 2 5 Melee . | . . . . . . . . . . . . . . . . . . . . . . Uniques/NPCs Destroyed . | . . . . . . . . . . . . . . . . . . . . . . Combat | -11 -10 -10 -9 -9 -7 -6 -6 -6 -6 -6 -6 -5 -4 -4 -4 -4 -3 -3 -3 -2 -2 -------- Run | Yrd Mat Min Mat Min Zio Pro Fac Ext Cet Arc Hub Fac Fac Upp Upp War Pro Res Arm Res Tes Hostile Shots Fired 1810 | . 14 13 72 . . 63 163 102 19 2 84 56 30 23 66 93 72 89 203 141 505 Missed 618 | . 7 2 22 . . 14 56 44 7 . 43 18 5 9 28 33 24 30 71 53 152 Damage Taken 10706 | . 40 73 428 . . 289 900 441 423 12 90 504 209 193 448 447 462 608 445 757 3937 Core 2045 | . . 13 48 . . 38 36 6 312 . 2 23 7 27 23 35 43 35 18 8 1371 Absorbed by Shields 2752 | . . . . . . . . . 119 13 121 322 85 80 131 183 179 145 511 743 120 Reduced by Siege Mode 45 | . . . . . . . . . . . . . . . . . . . . . 45 Ignored by Resistances 12152 | . 27 48 276 . . 197 579 365 180 23 229 648 259 171 391 719 439 543 1408 970 4680 Regen/Repaired (Parts) 283 | . . . . . 65 . 121 . . . . . . . . 97 . . . . . Core Remaining (%) 87 | 100 . 94 . . . 78 . . . . 58 97 . . . . 88 . 95 . . Volleys Fired 553 | . 18 8 50 . . 8 64 25 16 2 17 31 18 9 13 19 29 36 56 57 77 Largest 4 | . 2 2 2 . . 2 3 3 3 3 3 3 3 3 3 3 3 3 3 4 4 Hottest 270 | . 112 112 112 . . 160 260 270 270 270 270 261 215 140 155 179 187 197 198 264 264 Shots Fired 1481 | . 36 16 100 . . 16 148 75 48 6 48 86 54 25 30 53 78 104 161 200 197 Gun 235 | . 36 16 100 . . 8 72 . . . . 3 . . . . . . . . . Cannon 1189 | . . . . . . 8 72 75 48 6 48 81 54 25 20 43 78 100 159 197 175 Launcher 57 | . . . . . . . 4 . . . . 2 . . 10 10 . 4 2 3 22 Special . | . . . . . . . . . . . . . . . . . . . . . . Kinetic 784 | . . . . . . . . . . . . 1 . 17 14 43 78 100 159 197 175 Thermal 640 | . 36 16 100 . . 16 144 75 48 6 48 83 54 8 6 . . . . . . Explosive 57 | . . . . . . . 4 . . . . 2 . . 10 10 . 4 2 3 22 Electromagnetic . | . . . . . . . . . . . . . . . . . . . . . . Robot Hit Streak 55 | . 9 13 55 . . 11 43 44 19 8 16 19 22 6 23 25 14 30 49 46 48 Robot Miss Streak 4 | . 2 1 2 . . 2 2 1 1 . 1 1 1 1 2 1 2 2 1 2 4 Penetration Max 1 | . . . . . . . . . . . . . . . . 1 1 . . . . Secondary Targets 6 | . 1 1 2 . . . 2 . . . . . . . . . . . . . . Max Gunslinging Chain 1 | . 1 1 1 . . . 1 . . . . . . . . . . . . . . Shots Hit Robots 1141 | . 24 13 80 . . 14 122 61 39 3 31 69 31 15 23 41 50 85 135 150 155 Core Hits 878 | . 14 6 32 . . 9 78 24 14 3 12 52 21 6 41 120 25 43 56 97 225 Critical Kills 21 | . . . . . . . 3 2 . 1 2 1 1 1 . 3 7 . . . . Critical Parts Destroyed 16 | . . . . . . . . . . . . . . . . 6 10 . . . . Critical Strikes 97 | . 2 . 4 . . . 5 2 . 1 2 2 1 1 . 12 20 6 9 15 15 Burn 9 | . 2 . 4 . . . 2 . . . . 1 . . . . . . . . . Meltdown 11 | . . . . . . . 3 2 . 1 2 1 1 1 . . . . . . . Destroy 29 | . . . . . . . . . . . . . . . . 10 19 . . . . Blast 48 | . . . . . . . . . . . . . . . . 2 1 6 9 15 15 Melee Attacks . | . . . . . . . . . . . . . . . . . . . . . . Impact . | . . . . . . . . . . . . . . . . . . . . . . Slashing . | . . . . . . . . . . . . . . . . . . . . . . Piercing . | . . . . . . . . . . . . . . . . . . . . . . Sneak Attacks . | . . . . . . . . . . . . . . . . . . . . . . Combat Hostiles . | . . . . . . . . . . . . . . . . . . . . . . Follow-up Attacks . | . . . . . . . . . . . . . . . . . . . . . . Damage Inflicted 52909 | . 375 212 1187 . . 354 3779 2194 1287 95 1034 3268 1663 499 1554 5087 1616 3819 6206 7319 11361 Guns 3312 | . 372 212 1183 . . 179 1317 . . . . 49 . . . . . . . . . Cannons 33482 | . . . . . . 175 1771 2194 1287 95 1021 2144 1065 499 563 1081 1616 3271 5327 5959 5414 Explosions 15903 | . . . . . . . 691 . . . . 1056 546 . 991 4006 . 548 866 1283 5916 Melee . | . . . . . . . . . . . . . . . . . . . . . . Ramming 212 | . 3 . 4 . . . . . . . 13 19 52 . . . . . 13 77 31 Kinetic 23410 | . . . . . . . . . . . . . . 305 437 1081 1616 3271 5327 5959 5414 Thermal 14506 | . 372 212 1183 . . 354 3312 2194 1287 95 1021 2545 1611 194 126 . . . . . . Explosive 14771 | . . . . . . . 467 . . . . 694 . . 991 4006 . 548 866 1283 5916 Electromagnetic 10 | . . . . . . . . . . . . 10 . . . . . . . . . Impact . | . . . . . . . . . . . . . . . . . . . . . . Slashing . | . . . . . . . . . . . . . . . . . . . . . . Piercing . | . . . . . . . . . . . . . . . . . . . . . . Highest Corruption 9 | . . . . . . . 1 5 6 6 1 2 1 1 1 1 . 3 3 5 9 Average Corruption 2 | . . . . . . . 1 2 5 4 1 1 1 1 1 1 . 2 1 4 5 Corruption Purged 10 | . . . . . . . . . . 5 . 2 . . . . . . 3 . . Corruption Blocked 20 | . . . . . . . . . . . . . . . . . . . . . 20 Effects 175 | . . . . . . . 8 13 15 4 10 1 4 7 1 . . 13 20 48 31 Message Errors 50 | . . . . . . . 4 4 5 2 3 . 1 2 . . . 3 7 10 9 Matter Fused 42 | . . . . . . . 2 6 1 1 3 . 1 . . . . 4 7 12 5 Heat Flow Errors 19 | . . . . . . . . . 1 . 1 . 1 3 1 . . 2 . 8 2 Energy Discharges 15 | . . . . . . . . 1 1 . . . . 1 . . . 2 1 5 4 Parts Rejected 2 | . . . . . . . . . 1 . . . . . . . . . . 1 . Parts Fused 2 | . . . . . . . . . . . . . . . . . . . . 1 1 Data Loss (minor) 21 | . . . . . . . 1 1 4 1 1 . . . . . . 1 1 6 5 Data Loss (major) 11 | . . . . . . . 1 . 2 . 1 1 . 1 . . . 1 2 1 1 Misfires 3 | . . . . . . . . . . . . . 1 . . . . . . 1 1 Alerts 6 | . . . . . . . . 1 . . 1 . . . . . . . 1 2 1 Weapon Failures 4 | . . . . . . . . . . . . . . . . . . . 1 1 2 Overload Shots . | . . . . . . . . . . . . . . . . . . . . . . Overflow Damage 1287 | . . . . . . . 69 1 . . . 97 136 . 8 36 21 135 254 191 339 Projectiles 1134 | . . . . . . . 54 1 . . . 97 32 . . 32 21 127 254 184 332 Explosions 147 | . . . . . . . 15 . . . . . 104 . 8 4 . 8 . 1 7 Melee 6 | . . . . . . . . . . . . . . . . . . . . 6 . Knockbacks 126 | . 1 . . . . . . . . . . . . 1 1 6 5 21 17 34 40 Impact 3 | . 1 . . . . . . . . . . . . . . . . . . 1 1 Kinetic 117 | . . . . . . . . . . . . . . 1 1 5 5 20 17 30 38 Secondary 6 | . . . . . . . . . . . . . . . . 1 . 1 . 3 1 Self-Inflicted Damage 501 | . . . . . . . 53 . . . . 95 48 . 54 13 . 77 25 10 126 Shots 37 | . . . . . . . 1 . . . . 3 2 . 4 1 . 5 2 1 18 Rammed 10 | . . . 1 . . . . . . . 1 2 1 . . . . . 1 2 2 Targets Rammed 12 | . 1 . 1 . . . . . . . 1 2 1 . . . . . 1 3 2 Kicked . | . . . . . . . . . . . . . . . . . . . . . . Crushed 2 | . 1 . . . . . . . . . . . . . . . . . . 1 . Highest Temperature 874 | . 216 180 351 . . 415 490 810 874 156 404 448 335 226 478 117 213 293 448 557 849 Average Temperature 163 | . 62 75 117 . . 190 179 215 325 88 124 127 102 50 115 53 92 91 113 169 299 Received Heat Transfer 1801 | . 18 39 141 . . 78 348 235 25 4 45 61 20 6 54 192 32 57 80 40 326 Effects 191 | . . . . . . 4 17 3 20 . 1 6 . . 9 . . . 2 11 118 Shutdowns 59 | . . . . . . . 7 . . . 1 1 . . 2 . . . . 6 42 Energy Bleed 16 | . . . . . . . 3 . 2 . . 1 . . . . . . 1 2 7 Interference 39 | . . . . . . 1 3 . 3 . . 4 . . 5 . . . 1 2 20 Matter Decay 13 | . . . . . . 1 3 . . . . . . . 1 . . . . 1 7 Short Circuit 14 | . . . . . . 1 1 1 3 . . . . . 1 . . . . . 7 Damage (minor) 12 | . . . . . . 1 . 1 1 . . . . . . . . . . . 9 Damage (major) 30 | . . . . . . . . 1 9 . . . . . . . . . . . 20 Damage (core) 8 | . . . . . . . . . 2 . . . . . . . . . . . 6 Siege Activations 5 | . . . . . . . . . . . . . . . . . . 3 . . 2 Total Turns 56 | . . . . . . . . . . . . . . . . . . 16 . . 40 Longest Duration 26 | . . . . . . . . . . . . . . . . . . 13 . . 26 Robots Corrupted . | . . . . . . . . . . . . . . . . . . . . . . Combat Hostiles . | . . . . . . . . . . . . . . . . . . . . . . Parts Fried 3 | . . . . . . . . . 2 . . . . . . . . . . . 1 Impact Corruptions 1 | . . . . . . . . . . . . . . . . . . . . 1 . Robots Melted 17 | . . . . . . . 8 2 . 1 2 1 2 1 . . . . . . . Combat Hostiles 16 | . . . . . . . 8 1 . 1 2 1 2 1 . . . . . . . Parts Melted 67 | . . 1 13 . . . 17 8 4 3 4 12 5 . . . . . . . . Heat Transferred 25178 | . 1073 518 3219 . . 750 6227 3275 2000 150 1600 3704 2162 300 200 . . . . . . Parts Sabotaged . | . . . . . . . . . . . . . . . . . . . . . . Parts Stolen . | . . . . . . . . . . . . . . . . . . . . . . Parts Stripped . | . . . . . . . . . . . . . . . . . . . . . . Power Chain Reactions . | . . . . . . . . . . . . . . . . . . . . . . Alert | -11 -10 -10 -9 -9 -7 -6 -6 -6 -6 -6 -6 -5 -4 -4 -4 -4 -3 -3 -3 -2 -2 ------- Run | Yrd Mat Min Mat Min Zio Pro Fac Ext Cet Arc Hub Fac Fac Upp Upp War Pro Res Arm Res Tes Peak Influence 1566 | . 243 62 299 . . . 280 242 566 198 739 991 407 . . . . 372 990 1375 1566 Initial 456 | . . 7 14 . . . . 45 . 83 47 214 288 . . . . . 58 340 456 Average 385 | . 43 33 92 . . . 93 54 267 182 450 575 258 . . . . 150 669 925 914 Maximum Alert Level 4 | . 1 . 1 . . . 1 1 2 . 3 3 2 . . . . 1 3 4 4 Low Security (%) 45 | 100 99 100 80 100 . . 89 98 12 100 17 . 30 . . . . 76 8 . . Level 1 14 | . . . 19 . . . 10 1 72 . 12 17 64 . . . . 23 8 2 . Level 2 18 | . . . . . . . . . 15 . 66 55 4 . . . . . 21 29 27 Level 3 14 | . . . . . . . . . . . 3 26 . . . . . . 61 29 37 Level 4 7 | . . . . . . . . . . . . . . . . . . . . 38 34 Level 5 . | . . . . . . . . . . . . . . . . . . . . . . High Security . | . . . . . . . . . . . . . . . . . . . . . . Max Security . | . . . . . . . . . . . . . . . . . . . . . . Squads Dispatched 99 | . 2 . 5 . . . 13 3 2 . 9 14 4 . . . . 8 7 18 14 Investigation 30 | . 2 . 2 . . . 5 2 2 . 4 5 1 . . . . 2 1 4 . Extermination 25 | . . . . . . . 3 . . . 2 4 2 . . . . 1 5 5 3 Reinforcement 25 | . . . 3 . . . 2 1 . . . 4 1 . . . . 1 . 4 9 Assault 8 | . . . . . . . . . . . . 1 . . . . . . 1 4 2 Garrison 11 | . . . . . . . 3 . . . 3 . . . . . . 4 . 1 . Intercept . | . . . . . . . . . . . . . . . . . . . . . . Searches Triggered . | . . . . . . . . . . . . . . . . . . . . . . Construction Impeded 6 | . . . . . . . 1 . . . . . . . . . . . . 2 3 Haulers Reinforced 5 | . . . . . . . . . . . . 3 1 . . . . . . . 1 Active Scanning Responses . | . . . . . . . . . . . . . . . . . . . . . . Cargo Convoy Interrupts . | . . . . . . . . . . . . . . . . . . . . . . Stealth | -11 -10 -10 -9 -9 -7 -6 -6 -6 -6 -6 -6 -5 -4 -4 -4 -4 -3 -3 -3 -2 -2 --------- Run | Yrd Mat Min Mat Min Zio Pro Fac Ext Cet Arc Hub Fac Fac Upp Upp War Pro Res Arm Res Tes Distress Signals 20 | . 1 . 1 . . . 1 1 2 . 1 2 2 . . 1 . 1 1 4 2 Communications Jammed . | . . . . . . . . . . . . . . . . . . . . . . Distress Signals . | . . . . . . . . . . . . . . . . . . . . . . Times Spotted 535 | . 18 4 29 . . 8 47 17 19 1 32 50 21 12 11 20 17 28 61 74 66 Peak Tracking Total 13 | . 2 2 4 . . 3 3 2 5 1 5 6 4 7 5 13 5 3 6 6 10 Tactical Retreats 7 | . . . 1 . . . 3 . . . . . . . . . . . . . 3 Traps | -11 -10 -10 -9 -9 -7 -6 -6 -6 -6 -6 -6 -5 -4 -4 -4 -4 -3 -3 -3 -2 -2 ------- Run | Yrd Mat Min Mat Min Zio Pro Fac Ext Cet Arc Hub Fac Fac Upp Upp War Pro Res Arm Res Tes Traps Triggered 9 | . . . 2 . . . 1 1 . . 1 3 . . . . . . 1 . . Indirectly . | . . . . . . . . . . . . . . . . . . . . . . Trap Hack Attempts . | . . . . . . . . . . . . . . . . . . . . . . Triggered . | . . . . . . . . . . . . . . . . . . . . . . Disarmed . | . . . . . . . . . . . . . . . . . . . . . . Reprogrammed . | . . . . . . . . . . . . . . . . . . . . . . Reused . | . . . . . . . . . . . . . . . . . . . . . . Traps Extracted . | . . . . . . . . . . . . . . . . . . . . . . Installed . | . . . . . . . . . . . . . . . . . . . . . . Triggered 14 | . . . . . . . . . . . . . . . 1 12 1 . . . . Machines | -11 -10 -10 -9 -9 -7 -6 -6 -6 -6 -6 -6 -5 -4 -4 -4 -4 -3 -3 -3 -2 -2 ---------- Run | Yrd Mat Min Mat Min Zio Pro Fac Ext Cet Arc Hub Fac Fac Upp Upp War Pro Res Arm Res Tes Machines Disabled 49 | . . . 2 . . . 3 . . 2 5 17 3 . . . . 4 4 3 6 Max in Single Turn 4 | . . . 1 . . . 2 . . 1 1 4 3 . . . . 1 1 1 1 Garrison Access 4 | . . . . . . . . . . . . . 1 . . . . 2 . 1 . Machines Repaired . | . . . . . . . . . . . . . . . . . . . . . . Machines Dismantled . | . . . . . . . . . . . . . . . . . . . . . . Machines Sabotaged . | . . . . . . . . . . . . . . . . . . . . . . Overloaded Fab Kills . | . . . . . . . . . . . . . . . . . . . . . . Hacking | -11 -10 -10 -9 -9 -7 -6 -6 -6 -6 -6 -6 -5 -4 -4 -4 -4 -3 -3 -3 -2 -2 --------- Run | Yrd Mat Min Mat Min Zio Pro Fac Ext Cet Arc Hub Fac Fac Upp Upp War Pro Res Arm Res Tes Machines Accessed 61 | . 5 . 8 . . . 8 5 3 1 1 8 3 . . 4 . 5 6 4 . Terminals 23 | . 5 . 5 . . . 3 5 3 . . 1 . . . . . . 1 . . Fabricators 12 | . . . . . . . 2 . . . . 2 1 . . . . 1 4 2 . Repair Stations 4 | . . . . . . . 1 . . . . 2 . . . . . . . 1 . Recycling Units 7 | . . . 1 . . . 1 . . . . 1 1 . . . . 1 1 1 . Scanalyzers 5 | . . . 2 . . . 1 . . . . 2 . . . . . . . . . Garrison Access 5 | . . . . . . . . . . . 1 . 1 . . . . 3 . . . Total Hacks 172 | . 17 . 19 . . . 19 7 7 25 1 25 9 . . 8 . 9 16 10 . Successful 115 | . 10 . 13 . . . 12 4 5 25 . 14 7 . . 8 . 4 8 5 . Failed 57 | . 7 . 6 . . . 7 3 2 . 1 11 2 . . . . 5 8 5 . Catastrophic 9 | . 1 . 1 . . . 1 . 1 . 1 2 . . . . . 1 1 . . Database Lockouts . | . . . . . . . . . . . . . . . . . . . . . . Manual 135 | . 17 . 16 . 1 . 9 4 2 3 9 9 10 . . . . 11 13 24 7 Terminals 49 | . 17 . 13 . . . 3 7 7 . . 1 . . . . . . 1 . . Fabricators 43 | . . . . . . . 7 . . . . 10 3 . . . . 3 14 6 . Repair Stations 14 | . . . . . . . 6 . . . . 5 . . . . . . . 3 . Recycling Units 15 | . . . 2 . . . 2 . . . . 4 4 . . . . 1 1 1 . Scanalyzers 10 | . . . 4 . . . 1 . . . . 5 . . . . . . . . . Garrison Access 8 | . . . . . . . . . . . 1 . 2 . . . . 5 . . . Terminal Hacks 64 | . 10 . 7 . . . 3 4 5 25 . 1 . . . 8 . . 1 . . Record 37 | . . . . . . . . . 5 25 . . . . . 7 . . . . . Part Schematic 1 | . 1 . . . . . . . . . . . . . . . . . . . . Robot Analysis 8 | . 7 . 1 . . . . . . . . . . . . . . . . . . Open Door 7 | . . . . . . . 1 4 . . . . . . . 1 . . 1 . . Open DSF 3 | . . . . . . . 2 . . . . 1 . . . . . . . . . Branch Access Points 2 | . 1 . 1 . . . . . . . . . . . . . . . . . . Terminal Index 2 | . 1 . 1 . . . . . . . . . . . . . . . . . . Fabricator Index 1 | . . . 1 . . . . . . . . . . . . . . . . . . Scanalyzer Index 1 | . . . 1 . . . . . . . . . . . . . . . . . . Alert Level 1 | . . . 1 . . . . . . . . . . . . . . . . . . Unreport Threat 1 | . . . 1 . . . . . . . . . . . . . . . . . . Fabricator Hacks 25 | . . . . . . . 4 . . . . 6 3 . . . . 2 7 3 . Load Schematic 14 | . . . . . . . 2 . . . . 3 2 . . . . 1 4 2 . Build 11 | . . . . . . . 2 . . . . 3 1 . . . . 1 3 1 . Repair Station Hacks 6 | . . . . . . . 4 . . . . 1 . . . . . . . 1 . Scan Component 4 | . . . . . . . 2 . . . . 1 . . . . . . . 1 . Repair 2 | . . . . . . . 2 . . . . . . . . . . . . . . Recycling Unit Hacks 2 | . . . . . . . . . . . . . 1 . . . . . . 1 . Report Inventory 1 | . . . . . . . . . . . . . 1 . . . . . . . . Retrieve Matter 1 | . . . . . . . . . . . . . . . . . . . . 1 . Scanalyzer 7 | . . . 2 . . . 1 . . . . 4 . . . . . . . . . Insert Component 7 | . . . 2 . . . 1 . . . . 4 . . . . . . . . . Garrison Access Hacks 3 | . . . . . . . . . . . . . 1 . . . . 2 . . . Seal Access 3 | . . . . . . . . . . . . . 1 . . . . 2 . . . Unauthorized Hacks 8 | . . . 4 . . . . . . . . 2 2 . . . . . . . . Terminals . | . . . . . . . . . . . . . . . . . . . . . . Fabricators . | . . . . . . . . . . . . . . . . . . . . . . Repair Stations . | . . . . . . . . . . . . . . . . . . . . . . Recycling Units 6 | . . . 2 . . . . . . . . 2 2 . . . . . . . . Reject 3 | . . . 1 . . . . . . . . 1 1 . . . . . . . . Mask 3 | . . . 1 . . . . . . . . 1 1 . . . . . . . . Scanalyzers 2 | . . . 2 . . . . . . . . . . . . . . . . . . Extract 2 | . . . 2 . . . . . . . . . . . . . . . . . . Garrison Access . | . . . . . . . . . . . . . . . . . . . . . . Data Cores Recovered 1 | . . . . . . . . . . . . . 1 . . . . . . . . Used . | . . . . . . . . . . . . . . . . . . . . . . Hacking Detections 41 | . 4 . 4 . . . 6 2 3 . 1 6 3 . . . . 3 5 4 . Full Trace Events 20 | . 3 . . . . . 3 1 2 . 1 3 1 . . . . 2 1 3 . Feedback Events 2 | . . . . . . . . 1 1 . . . . . . . . . . . . Corruption 2 | . . . . . . . . 1 1 . . . . . . . . . . . . Feedback Blocked . | . . . . . . . . . . . . . . . . . . . . . . Robot Schematics Acquired 5 | . . . . . 2 . . . . . 3 . . . . . . . . . . Robots Built 10 | . . . . . . . . . . . . 3 . . . . . . 7 . . Authchips 2 | . . . . . . . . . . . . . . . . . . . 2 . . Time 536 | . . . . . . . . . . . . 335 . . . . . . 201 . . Total Robot Build Rating 40 | . . . . . . . . . . . . 12 . . . . . . 28 . . Part Schematics Acquired 44 | . 1 . 4 . 15 . . . . . . . 10 . . . . . . 10 4 Parts Built 6 | . . . . . . . 4 . . . . . 1 . . . . 1 . . . Authchips . | . . . . . . . . . . . . . . . . . . . . . . Time 609 | . . . . . . . 142 . . . . . 152 . . . . 93 . 222 . Total Part Build Rating 32 | . . . . . . . 20 . . . . . 5 . . . . 7 . . . Parts Repaired 2 | . . . . . . . 2 . . . . . . . . . . . . . . Time 52 | . . . . . . . 52 . . . . . . . . . . . . . . Parts Recycled . | . . . . . . . . . . . . . . . . . . . . . . Recycled Matter . | . . . . . . . . . . . . . . . . . . . . . . Retrieved Matter . | . . . . . . . . . . . . . . . . . . . . . . Retrieved Components . | . . . . . . . . . . . . . . . . . . . . . . Parts Scanalyzed . | . . . . . . . . . . . . . . . . . . . . . . Part Schematics Acquired . | . . . . . . . . . . . . . . . . . . . . . . Parts Damaged . | . . . . . . . . . . . . . . . . . . . . . . Bothacking | -11 -10 -10 -9 -9 -7 -6 -6 -6 -6 -6 -6 -5 -4 -4 -4 -4 -3 -3 -3 -2 -2 ------------ Run | Yrd Mat Min Mat Min Zio Pro Fac Ext Cet Arc Hub Fac Fac Upp Upp War Pro Res Arm Res Tes Used RIF Installer . | . . . . . . . . . . . . . . . . . . . . . . Robots Hacked . | . . . . . . . . . . . . . . . . . . . . . . Non-combat . | . . . . . . . . . . . . . . . . . . . . . . Combat . | . . . . . . . . . . . . . . . . . . . . . . Robot Hacks Applied . | . . . . . . . . . . . . . . . . . . . . . . Relay Couplers Released 2 | . . . . . . . . . . . . . . . . . . . . 2 . Machine Destruction 2 | . . . . . . . . . . . . . . . . . . . . 2 . Fabnet Peak Effective % . | . . . . . . . . . . . . . . . . . . . . . . Robots Rewired 6 | . . . . . . . . . . . . . . 2 . . . . 3 . 1 Allies Hacked 8 | . . . . . . . . . . . . . . . . . . . 4 4 . Hacks Repelled . | . . . . . . . . . . . . . . . . . . . . . . Allies | -11 -10 -10 -9 -9 -7 -6 -6 -6 -6 -6 -6 -5 -4 -4 -4 -4 -3 -3 -3 -2 -2 -------- Run | Yrd Mat Min Mat Min Zio Pro Fac Ext Cet Arc Hub Fac Fac Upp Upp War Pro Res Arm Res Tes Total Allies 72 | . . 3 . . 6 . . 4 5 . 6 15 5 2 . . . 2 13 10 1 Largest Group 13 | . . 3 3 . 6 6 4 3 8 8 9 13 5 3 1 . . 2 8 7 1 Highest-Rated Group 850 | . . 40 40 . 351 351 215 346 826 826 850 847 336 255 42 . . 297 731 635 149 Highest-Rated Ally 269 | . . 16 16 . 96 96 96 167 167 167 167 167 167 164 42 . . 269 269 261 149 Zionite Dispatches 13 | . . . . . . . . 1 . . 1 . 2 . . . . 2 2 5 . Heavy 4 | . . . . . . . . . . . . . . . . . . . 1 3 . Light 1 | . . . . . . . . . . . 1 . . . . . . . . . . Fire 1 | . . . . . . . . . . . . . 1 . . . . . . . . Demo 2 | . . . . . . . . . . . . . . . . . . . . 2 . Experimental 2 | . . . . . . . . . . . . . . . . . . 1 1 . . Hero 1 | . . . . . . . . 1 . . . . . . . . . . . . . Kinetic Resupply 1 | . . . . . . . . . . . . . 1 . . . . . . . . Offense Resupply 1 | . . . . . . . . . . . . . . . . . . 1 . . . Total Orders 1 | . . . . . . . . . . . . . . . . . . . 1 . . GUARD 1 | . . . . . . . . . . . . . . . . . . . 1 . . Ally Attacks 752 | . . 5 30 . . 18 17 11 50 9 129 125 29 25 3 . . 29 125 119 28 Total Damage 44671 | . . 18 330 . . 723 647 310 2961 694 4115 7456 1800 1808 64 . . 3108 10239 8727 1671 Kills 261 | . . . 7 . . 5 5 6 19 3 34 51 14 7 . . . 15 42 41 12 Allies Corrupted 10 | . . . . . . . . 1 . . . 1 . 1 . . . . 2 5 . Allies Melted 1 | . . . . . . . . . . . . . . . . 1 . . . . . Intel | -11 -10 -10 -9 -9 -7 -6 -6 -6 -6 -6 -6 -5 -4 -4 -4 -4 -3 -3 -3 -2 -2 ------- Run | Yrd Mat Min Mat Min Zio Pro Fac Ext Cet Arc Hub Fac Fac Upp Upp War Pro Res Arm Res Tes Robot Analysis Total 8 | . 7 . 1 . . . . . . . . . . . . . . . . . . Derelict Logs Recovered 4 | . . . . . . 1 . . . . . . . 1 2 . . . . . . Drone Launches . | . . . . . . . . . . . . . . . . . . . . . . Drone Recoveries . | . . . . . . . . . . . . . . . . . . . . . . Zionite Intel Received 11 | . . . . . . . 1 . . . 2 1 1 . . . . 1 2 2 1 Main Access 1 | . . . . . . . . . . . . . . . . . . . . 1 . Prototype Stockpiles 1 | . . . . . . . . . . . . . . . . . . . 1 . . Prototype Schematics 2 | . . . . . . . . . . . . . 1 . . . . . . 1 . Unaware Schematics 1 | . . . . . . . . . . . 1 . . . . . . . . . . Unaware Analyses 1 | . . . . . . . . . . . 1 . . . . . . . . . . Active Terminals 1 | . . . . . . . 1 . . . . . . . . . . . . . . Depthwide Sectors/0 1 | . . . . . . . . . . . . . . . . . . . 1 . . Depthwide Sectors/-1 3 | . . . . . . . . . . . . 1 . . . . . 1 . . 1 Exploration | -11 -10 -10 -9 -9 -7 -6 -6 -6 -6 -6 -6 -5 -4 -4 -4 -4 -3 -3 -3 -2 -2 ------------- Run | Yrd Mat Min Mat Min Zio Pro Fac Ext Cet Arc Hub Fac Fac Upp Upp War Pro Res Arm Res Tes Turns Passed 27715 | 87 929 600 1763 27 3243 1829 2742 1277 508 237 1147 2104 1128 812 702 1122 803 1408 1558 2406 1283 Spaces Moved 13930 | 51 443 237 659 12 1349 732 1480 737 269 140 659 1201 620 468 389 627 429 760 780 1325 563 Core 10 | 10 . . . . . . . . . . . . . . . . . . . . . Treads 13920 | 41 443 237 659 12 1349 732 1480 737 269 140 659 1201 620 468 389 627 429 760 780 1325 563 Legs . | . . . . . . . . . . . . . . . . . . . . . . Wheels . | . . . . . . . . . . . . . . . . . . . . . . Hover . | . . . . . . . . . . . . . . . . . . . . . . Flight . | . . . . . . . . . . . . . . . . . . . . . . Fastest Speed 50 | 50 160 240 240 240 240 240 159 159 161 162 162 162 165 165 165 165 165 160 160 160 161 Average Speed 180 | 138 190 240 240 240 240 241 159 160 161 162 162 162 165 165 165 165 165 160 160 165 165 Slowest Speed 243 | 160 240 240 240 240 240 243 161 161 242 162 162 165 165 165 165 165 165 165 160 166 166 Overloaded Moves . | . . . . . . . . . . . . . . . . . . . . . . Propulsion Burnouts . | . . . . . . . . . . . . . . . . . . . . . . Robots Hopped . | . . . . . . . . . . . . . . . . . . . . . . Cave-ins Triggered . | . . . . . . . . . . . . . . . . . . . . . . Exploration Rate (%) 58 | 5 86 60 60 11 90 96 37 89 76 95 71 34 15 64 61 81 77 31 53 48 52 Regions Visited 21 Branch Regions 14 Pre-discovered Areas 16 | . . . . . 2 1 . . . . . 5 . . . . . 2 4 . 2 Known Exits Taken 20 | 1 1 1 1 . 1 1 1 1 1 1 1 1 1 1 1 1 1 1 1 1 . Unknown Exits Taken 1 | . . . . 1 . . . . . . . . . . . . . . . . . Scrap Searched 13 | . . . . . 2 3 . . . . . . . 1 2 . 5 . . . . Spaces Dug 117 | . . . . . . . . . . . . . . . 73 . . . . . 44 Terrain Destroyed 937 | . . . . . . . 47 2 2 2 11 50 56 10 192 63 19 52 61 55 315 Melee . | . . . . . . . . . . . . . . . . . . . . . . Projectile 153 | . . . . . . . 7 2 2 2 11 6 12 10 4 2 19 11 20 26 19 AOE 784 | . . . . . . . 40 . . . . 44 44 . 188 61 . 41 41 29 296 Terrain Rammed . | . . . . . . . . . . . . . . . . . . . . . . Walls Destroyed . | . . . . . . . . . . . . . . . . . . . . . . Machines Disabled . | . . . . . . . . . . . . . . . . . . . . . . Actions | -11 -10 -10 -9 -9 -7 -6 -6 -6 -6 -6 -6 -5 -4 -4 -4 -4 -3 -3 -3 -2 -2 --------- Run | Yrd Mat Min Mat Min Zio Pro Fac Ext Cet Arc Hub Fac Fac Upp Upp War Pro Res Arm Res Tes Total 15389 | 68 494 253 741 11 1357 776 1733 773 311 149 704 1288 686 491 410 663 464 872 970 1423 752 Wait 348 | . 2 5 9 . . 20 127 1 . . 8 2 37 . . . . 30 75 14 18 Move 13909 | 50 442 236 658 11 1348 731 1479 736 268 139 658 1200 619 467 388 626 428 759 779 1324 563 Hop . | . . . . . . . . . . . . . . . . . . . . . . Pick Up 194 | 11 19 3 13 . 5 5 26 4 11 3 10 17 5 4 1 5 2 16 18 9 7 Fast Attach . | . . . . . . . . . . . . . . . . . . . . . . Attach 57 | 7 3 . 2 . . . 8 3 3 1 1 4 2 . . . . 6 4 4 9 Detach . | . . . . . . . . . . . . . . . . . . . . . . Swap 115 | . 1 1 3 . . 6 15 3 4 1 1 17 1 2 8 9 3 10 12 7 11 Drop 129 | . 8 . 5 . 4 6 14 1 9 3 8 15 3 6 . 4 2 15 17 5 4 Fire 553 | . 18 8 50 . . 8 64 25 16 2 17 31 18 9 13 19 29 36 56 57 77 Melee . | . . . . . . . . . . . . . . . . . . . . . . Ram . | . . . . . . . . . . . . . . . . . . . . . . Kick . | . . . . . . . . . . . . . . . . . . . . . . Crush 12 | . 1 . 1 . . . . . . . 1 2 1 . . . . . 1 3 2 Escape Stasis 52 | . . . . . . . . . . . . . . . . . . . . . 52 Rewire 20 | . . . . . . . . . . . . . . 3 . . . . 8 . 9 Trap . | . . . . . . . . . . . . . . . . . . . . . . Miscellaneous . | . . . . . . . . . . . . . . . . . . . . . . Route ------- -11/Scrapyard -10/Materials (discovered 4 exits: *Mat x3 / *Min) -10/Mines -9/Materials (discovered 3 exits: *Mat x2 / *Min) -9/Mines -7/Zion -6/Proximity Caves -6/Factory (discovered 3 exits: *Fac x2 / *Ext) -6/Extension (discovered 3 exits: *Fac x2 / *Cet) -6/Cetus (discovered 3 exits: *Fac x2 / *Arc) -6/Archives (discovered 3 exits: *Fac / *Hub x2) -6/Hub_04(d) (discovered 3 exits: *Fac x3) -5/Factory -4/Factory -4/Upper Caves -4/Upper Caves (discovered 2 exits: *Res / *War) -4/Warlord -3/Proximity Caves -3/Research -3/Armory -2/Research (discovered 4 exits: *Acc x3 / *Tes) -2/Testing History --------- Turn | Location | Event 33 | -11/Scrapyard | Identified exit to Materials 33 | -11/Scrapyard | Discovered exit to Materials (range 15) 88 | -11/Scrapyard | Entered Materials 88 | -10/Materials | Evolved 1 slot: Propulsion x1 210 | -10/Materials | Identified exit to Materials 210 | -10/Materials | Discovered exit to Materials (range 5) 343 | -10/Materials | Build established: Hacker-Mutant 535 | -10/Materials | Discovered exit to Materials (range 8) 627 | -10/Materials | Identified exit to Mines 639 | -10/Materials | Discovered exit to Materials (range 16) 1017 | -10/Materials | Entered Mines 1295 | -10/Mines | Found a damaged Exp. Sensor Array with a note attached 1300 | -10/Mines | Found Prototype Device 1394 | -10/Mines | Assisted by bots powering up and referring to "LRC-V3" 1525 | -10/Mines | Discovered exit to Materials (range 15) 1527 | -10/Mines | Received a Rocket Launcher from a helpful Derelict 1617 | -10/Mines | Entered Materials 1617 | -9/Materials | Accompanied by 3 allies 1617 | -9/Materials | Evolved 2 slots: Propulsion x1, Utility x1 1728 | -9/Materials | Identified exit to Mines 1728 | -9/Materials | Discovered exit to Mines (range 15) 2040 | -9/Materials | Identified exit to Materials 2040 | -9/Materials | Discovered exit to Materials (range 16) 2388 | -9/Materials | Discovered exit to Materials (range 5) 3068 | -9/Materials | Identified Exp. Sensor Array 3380 | -9/Materials | Entered Mines 3381 | -9/Mines | A Derelict revealed a hidden shortcut to a safe place 3407 | -9/Mines | Entered Zion 4408 | -7/Zion | Learned location of Armory (-3) 4432 | -7/Zion | Given A8's code to call for help 4498 | -7/Zion | Found Prototype Device 4768 | -7/Zion | Learned location of Recycling (-7) 5618 | -7/Zion | Imprinted 5620 | -7/Zion | Declared Zion's savior 6503 | -7/Zion | Received a hallucinogenic algorithm 6514 | -7/Zion | Enhanced Grunt warped into view, answering call for help 6518 | -7/Zion | Enhanced Grunt warped into view, answering call for help 6585 | -7/Zion | Identified exit to Proximity Caves 6585 | -7/Zion | Discovered exit to Proximity Caves (range 16) 6650 | -7/Zion | Entered Proximity Caves 6650 | -6/Proximity Caves | Accompanied by 6 allies 7443 | -6/Proximity Caves | Received a Behemoth hack from an annoying Tinkerer 7806 | -6/Proximity Caves | Attracted the attention of an 0b10 checkpoint 8460 | -6/Proximity Caves | Identified exit to Factory 8460 | -6/Proximity Caves | Discovered exit to Factory (range 5) 8479 | -6/Proximity Caves | Entered Factory 8479 | -6/Factory | Accompanied by 4 allies 8479 | -6/Factory | Evolved 6 slots: Power x1, Propulsion x2, Utility x2, Weapon x1 8687 | -6/Factory | Identified Bomb Factory No. 2 8788 | -6/Factory | Build established: Scavenger-Gunner 9196 | -6/Factory | Build established: Hacker-Gunner 9205 | -6/Factory | Identified exit to Factory 9205 | -6/Factory | Discovered exit to Factory (range 4) 9329 | -6/Factory | Retrieved Zion intel report: Active Terminals 9589 | -6/Factory | Fabricated Hvy. Plasma Cannon (x2) 9722 | -6/Factory | Repaired Broken Plasma Cannon 9746 | -6/Factory | Repaired Coolant Injector 9949 | -6/Factory | Found Prototype Launcher 9952 | -6/Factory | Found Prototype Launcher 10347 | -6/Factory | Discovered exit to Factory (range 8) 10705 | -6/Factory | Fabricated Hvy. Plasma Cannon (x2) 10759 | -6/Factory | Garrison activated, responded to threat 11195 | -6/Factory | Identified exit to Extension 11195 | -6/Factory | Discovered exit to Extension (range 6) 11221 | -6/Factory | Entered Extension 11339 | -6/Extension | Spotted B-75 Beast 11340 | -6/Extension | Build established: Hacker-Tank 11363 | -6/Extension | Destroyed B-75 Beast 11377 | -6/Extension | Spotted B-75 Beast 11414 | -6/Extension | Destroyed B-75 Beast 11439 | -6/Extension | Discovered exit to Factory (range 3) 11654 | -6/Extension | Rescued a captive Derelict 11716 | -6/Extension | Rescued a captive Derelict 11739 | -6/Extension | Rescued A7 12097 | -6/Extension | Identified exit to Cetus 12097 | -6/Extension | Discovered exit to Cetus (range 16) 12099 | -6/Extension | Discovered exit to Factory (range 15) 12338 | -6/Extension | Zion hero teleported in (P1-3CE) 12498 | -6/Extension | Entered Cetus 12498 | -6/Cetus | Accompanied by 3 allies (incl. A7, P1-3CE) 12503 | -6/Cetus | Acquired a Cetus Manufacturing Module code from A7 12519 | -6/Cetus | Spotted Cetus Guard 12519 | -6/Cetus | Spotted Cetus Guard 12519 | -6/Cetus | Allies destroyed Cetus Guard 12522 | -6/Cetus | Spotted Cetus Guard 12523 | -6/Cetus | Allies destroyed Cetus Guard 12523 | -6/Cetus | Spotted Cetus Guard 12537 | -6/Cetus | Destroyed Cetus Guard 12541 | -6/Cetus | Allies destroyed Cetus Guard 12641 | -6/Cetus | Discovered exit to Factory (range 15) 12803 | -6/Cetus | Started Cetus Manufacturing Module 12828 | -6/Cetus | Manufactured an Enhanced Grunt 12842 | -6/Cetus | Identified exit to Archives 12842 | -6/Cetus | Discovered exit to Archives (range 15) 12853 | -6/Cetus | Manufactured an Enhanced Grunt 12878 | -6/Cetus | Manufactured an Enhanced Grunt 12882 | -6/Cetus | Spotted Cetus Guard 12882 | -6/Cetus | Spotted Cetus Guard 12883 | -6/Cetus | Destroyed Cetus Guard 12886 | -6/Cetus | Spotted Cetus Guard 12889 | -6/Cetus | Allies destroyed Cetus Guard 12889 | -6/Cetus | Spotted Cetus Guard 12893 | -6/Cetus | Destroyed Cetus Guard 12899 | -6/Cetus | Allies destroyed Cetus Guard 12903 | -6/Cetus | Manufactured an Enhanced Grunt 12910 | -6/Cetus | Discovered exit to Factory (range 16) 12919 | -6/Cetus | Scared off Revision 17 12928 | -6/Cetus | Manufactured an Enhanced Grunt 13006 | -6/Cetus | Entered Archives 13006 | -6/Archives | Accompanied by 8 allies (incl. A7, P1-3CE) 13059 | -6/Archives | Unable to access archive contents 13075 | -6/Archives | Unable to access archive contents 13077 | -6/Archives | Identified exit to Hub_04(d) 13077 | -6/Archives | Discovered exit to Hub_04(d) (range 16) 13123 | -6/Archives | Unable to access archive contents 13127 | -6/Archives | Discovered exit to Hub_04(d) (range 15) 13170 | -6/Archives | Unable to access archive contents 13175 | -6/Archives | Discovered exit to Factory (range 14) 13243 | -6/Archives | Entered Hub_04(d) 13243 | -6/Hub_04(d) | Accompanied by 6 allies (P1-3CE) 13395 | -6/Hub_04(d) | Allied Derelicts emerged from ambush trap array 13505 | -6/Hub_04(d) | Build established: Scavenger-Tank 13562 | -6/Hub_04(d) | Discovered exit to Factory (range 9) 13599 | -6/Hub_04(d) | Garrison activated, responded to threat 13638 | -6/Hub_04(d) | Retrieved Zion intel report: Unaware Schematics 13734 | -6/Hub_04(d) | Retrieved Zion intel report: Unaware Analyses 13871 | -6/Hub_04(d) | Discovered exit to Factory (range 10) 13962 | -6/Hub_04(d) | Zion Light squad teleported in 14022 | -6/Hub_04(d) | Build established: Scavenger-Mutant 14294 | -6/Hub_04(d) | Discovered exit to Factory (range 10) 14390 | -6/Hub_04(d) | Entered Factory 14390 | -5/Factory | Accompanied by 8 allies (P1-3CE) 14390 | -5/Factory | Evolved 2 slots: Utility x2 14459 | -5/Factory | Identified exit to DSF 14542 | -5/Factory | Build established: Scavenger-Tank 14584 | -5/Factory | Lost 7 allies 14599 | -5/Factory | Identified Rocket Array (x2) 15237 | -5/Factory | Fabricated I-36 Angel? 15756 | -5/Factory | Retrieved Zion intel report: Depthwide Sectors/-1 15809 | -5/Factory | Fabricated I-36 Angel? 15890 | -5/Factory | First assault squad dispatched 16120 | -5/Factory | Lost 3 allies 16212 | -5/Factory | Identified exit to Factory 16212 | -5/Factory | Discovered exit to Factory (range 7) 16438 | -5/Factory | Fabricated I-36 Angel? 16494 | -5/Factory | Entered another Factory area 16494 | -4/Factory | Accompanied by 4 allies (P1-3CE) 16494 | -4/Factory | Evolved 2 slots: Utility x2 16770 | -4/Factory | Retrieved Zion intel report: Prototype Schematics 16800 | -4/Factory | Identified exit to Upper Caves 16800 | -4/Factory | Discovered exit to Upper Caves (range 4) 17130 | -4/Factory | Fabricated Antimatter Cannon (x1) 17476 | -4/Factory | Zion Fire squad teleported in 17517 | -4/Factory | Zion Kinetic Resupply teleported in 17530 | -4/Factory | Lost 4 allies 17622 | -4/Factory | Entered Upper Caves 17622 | -4/Upper Caves | Accompanied by 1 ally (P1-3CE) 17726 | -4/Upper Caves | Spotted B-86 Titan 17738 | -4/Upper Caves | Allies destroyed B-86 Titan 18020 | -4/Upper Caves | Learned Research trap positions 18157 | -4/Upper Caves | Identified exit to Upper Caves 18157 | -4/Upper Caves | Discovered exit to Upper Caves (range 11) 18312 | -4/Upper Caves | Attracted the attention of an 0b10 outpost 18434 | -4/Upper Caves | Entered another Upper Caves area 18434 | -4/Upper Caves | Accompanied by 1 ally 18476 | -4/Upper Caves | Identified exit to Research 18476 | -4/Upper Caves | Discovered exit to Research (range 4) 18487 | -4/Upper Caves | Identified exit to Warlord 18586 | -4/Upper Caves | Spotted B-86 Titan 18614 | -4/Upper Caves | Destroyed B-86 Titan 19082 | -4/Upper Caves | Attracted the attention of an 0b10 checkpoint 19136 | -4/Upper Caves | Entered Warlord 19196 | -4/Warlord | System corruption cleaned by Quarantine Array 19568 | -4/Warlord | Visited the Vortex Lab 19579 | -4/Warlord | Warlord's base attacked by MAIN.C 19584 | -4/Warlord | Found Prototype Energy Cannon 19587 | -4/Warlord | Found Prototype Energy Cannon 19769 | -4/Warlord | Learned Research trap positions 19769 | -4/Warlord | Learned Testing trap positions 19769 | -4/Warlord | Learned Quarantine emergency access door positions 19769 | -4/Warlord | Learned Quarantine stockpile data 19770 | -4/Warlord | Learned 4 Armory zone layouts 19846 | -4/Warlord | Rebuked by Warlord 19929 | -4/Warlord | Warlord forces counterattacked 20081 | -4/Warlord | Spotted Striker 20086 | -4/Warlord | Spotted B-90 Cyclops 20087 | -4/Warlord | Destroyed Striker 20091 | -4/Warlord | Spotted Striker 20115 | -4/Warlord | Destroyed Striker 20137 | -4/Warlord | Lost 6 allies 20168 | -4/Warlord | Destroyed B-90 Cyclops 20196 | -4/Warlord | Spotted Striker 20198 | -4/Warlord | Spotted Striker 20206 | -4/Warlord | Destroyed Striker 20211 | -4/Warlord | Destroyed Striker 20221 | -4/Warlord | Identified exit to Proximity Caves 20221 | -4/Warlord | Discovered exit to Proximity Caves (range 18) 20232 | -4/Warlord | Destroyed 13 combat bots 20254 | -4/Warlord | Warlord base infiltrated, sounded retreat 20258 | -4/Warlord | Entered Proximity Caves 20689 | -3/Proximity Caves | Attracted the attention of an 0b10 checkpoint 20843 | -3/Proximity Caves | Spotted B-86 Titan 20856 | -3/Proximity Caves | Destroyed B-86 Titan 20965 | -3/Proximity Caves | Discovered exit to Research (range 8) 21061 | -3/Proximity Caves | Entered Research 21061 | -3/Research | Evolved 2 slots: Utility x2 21062 | -3/Research | Loaded intel: 97 trap records 21499 | -3/Research | Garrison activated, responded to threat 21505 | -3/Research | Garrison activated, responded to threat 21572 | -3/Research | Spotted B-86 Titan 21610 | -3/Research | Retrieved Zion intel report: Depthwide Sectors/-1 21697 | -3/Research | Zion Experimental squad teleported in 21751 | -3/Research | Fabricated Adv. Matter Compressor? 21894 | -3/Research | Spotted B-86 Titan 21906 | -3/Research | Allies destroyed B-86 Titan 21920 | -3/Research | Found Hvy. Reflective Plating 22078 | -3/Research | Zion Offense Resupply teleported in 22367 | -3/Research | Identified exit to Armory 22367 | -3/Research | Discovered exit to Armory (range 10) 22469 | -3/Research | Entered Armory 22469 | -3/Armory | Accompanied by 2 allies 22619 | -3/Armory | Found Prototype Protection 22633 | -3/Armory | Identified Zio. Shade Armor 22771 | -3/Armory | Retrieved Zion intel report: Depthwide Sectors/0 22772 | -3/Armory | Zion Experimental squad teleported in 22784 | -3/Armory | Zion Heavy squad teleported in 22972 | -3/Armory | Identified exit to Research 22972 | -3/Armory | Discovered exit to Research (range 5) 22978 | -3/Armory | Lost 3 allies 22994 | -3/Armory | First assault squad dispatched 23064 | -3/Armory | Destroyed B-86 Titan 23207 | -3/Armory | Fabricated I-36 Angel (x1) 23274 | -3/Armory | Retrieved Zion intel report: Prototype Stockpiles 23376 | -3/Armory | Found Prototype Launcher 23379 | -3/Armory | Found Prototype Launcher 23381 | -3/Armory | Found Prototype Launcher 23384 | -3/Armory | Found Prototype Launcher 23386 | -3/Armory | Found Prototype Launcher 23392 | -3/Armory | Identified Tesla Bomb Launcher (x5) 23650 | -3/Armory | Fabricated L-41 Fighter (x3) 23717 | -3/Armory | Fabricated L-41 Fighter? 23980 | -3/Armory | P-80 Master assimilated allied Fighter 8f 24027 | -3/Armory | Entered Research 24027 | -2/Research | Accompanied by 5 allies 24027 | -2/Research | Evolved 2 slots: Utility x1, Weapon x1 24028 | -2/Research | Loaded intel: 115 trap records 24049 | -2/Research | Retrieved Zion intel report: Main Access 24049 | -2/Research | Identified exit to Access 24131 | -2/Research | Retrieved Zion intel report: Prototype Schematics 24132 | -2/Research | Zion Heavy squad teleported in 24381 | -2/Research | Lost 4 allies 24550 | -2/Research | Zion Heavy squad teleported in 24831 | -2/Research | Lost 3 allies 25124 | -2/Research | Build established: Hacker-Tank 25132 | -2/Research | Zion Demo squad teleported in 25304 | -2/Research | First assault squad dispatched 25419 | -2/Research | Zion Demo squad teleported in 25828 | -2/Research | P-80 Master assimilated allied VC-B2I(d) 25952 | -2/Research | Zion Heavy squad teleported in 26402 | -2/Research | Identified exit to Testing 26402 | -2/Research | Discovered exit to Testing (range 11) 26433 | -2/Research | Entered Testing 26433 | -2/Testing | Accompanied by 1 ally 26434 | -2/Testing | Loaded intel: 20 trap records 26679 | -2/Testing | Scanned by Researcher 26700 | -2/Testing | Core integrity fell below 50% 26850 | -2/Testing | Destroyed 8 combat bots 26986 | -2/Testing | Spotted PH-REU4A7NN5G 26999 | -2/Testing | Rewired PH-REU4A7NN5G 27216 | -2/Testing | First assault squad dispatched 27298 | -2/Testing | Destroyed 9 combat bots 27396 | -2/Testing | Core integrity fell below 20% 27449 | -2/Testing | Retrieved Zion intel report: Depthwide Sectors/-1 27517 | -2/Testing | Lost 4 parts (3u1w) 27556 | -2/Testing | Spotted Striker 27577 | -2/Testing | Spotted Striker 27580 | -2/Testing | Spotted Alpha 7 27586 | -2/Testing | Destroyed Striker 27594 | -2/Testing | Destroyed Striker 27617 | -2/Testing | Lost 3 parts (1n2u) 27716 | -2/Testing | Self-destructed Last Messages --------------- 27701_ Slug penetrates Earth. 27702_ The unstable cave ceiling collapses. 27702_ Slug penetrates Reinforced Barrier. 27706_ U-05 Engineer lays Concrete. 27707_ The unstable cave ceiling collapses. 27707_ Penetrated by Slug. 27707_ Critical hit (Destroy). 27707_ Rocket Array destroyed. 27707_ Slug penetrates Reinforced Barrier. 27707_ Slug penetrates Wall. 27707_ Slug penetrates Machine. 27707_ U-05 Engineer lays Concrete. 27708_ Slug penetrates Earth. 27709_ U-05 Engineer lays Concrete. 27711_ The unstable cave ceiling collapses. 27716_ Imp. Medium Armor Plating destroyed. 27716_ Machine disabled. [Achievement: 30k Club] [Achievement: 40k Club] [Achievement: Achiever] Map ----- +----------------------------------------------------+ | | | | | | | | | | | | | | | | | | | | | | | | | | | | | ???????????????????######???????????? | | ???????????????????# #???????????? | | ?????????????#?###?# =#???????????? | | ????????????? ? ## #???????????? | | ????????????? # #???????????? | | ???????########### # #####???????? | | ???????#""""""# # # ##### # | | ???????#""&"""# # ## | | ???????#"" ""# # # | | ???????#"" # # p g | | ???????#"" hp! h | | ???????#" @ p7*=! g | | ???????#" # !]] g [ | | ???????#" " ## # ## * | | ???????##### ## """""## ## * | | ???????????####?# #" " " "! ## [ | | ????????????????## # + ####### | | ?????????????????###" " # #?? #?## | | ???????????????????##"""### #######? | | ??????????????????????????# # !%= #? | | ??????????????????????????# # "*" ## | | ??????????????????????????# # "* + | | ??????????????????????????# # ## | | ??????????????????????????/ # =* #? | | ??????????????????????????# # ="#? | | ??????????????????????????# # "## | | ??????????????????????????? # "# | | ??????????????????????????# #! ""# | | ??????????????????????????# #%="""# | | ??????????????????????????# #= """## | | ??????????????????????????# + ## | | ??????????????????????????# ####### | | ??????????????????????????# | | ??????????????????????????# | | ????????????^^????????????## # # | | ????????????????^??????????# # | +----------------------------------------------------+ Best States ------------- Heat Dissipation 80 Coolant Potential 65 Energy Generation 45 Energy Capacity 600 Matter Stores 300 Matter Capacity 300 Sight Range 22 Terrain Scan Density 10 Base Temperature (-) 150 Armor Coverage 3000 Resistance: KI 65 Resistance: TH 65 Resistance: EX 65 Resistance: EM 65 Resistance: I 65 Resistance: S 65 Resistance: P 65 Weapon Cycling 15 Phase Shifting 15 Evasion (%) 55 Targeting Accuracy 20 Launcher Accuracy 40 Recoil Reduction 6 Offensive Hacking 20 Authchip Count 2 Item Schematics ----------------- Huge Storage Unit | -10/Materials | Hacked Med. Storage Unit | -9/Materials | Extracted Tractor Beam | -9/Materials | Extracted Hpw. Tractor Beam | -9/Materials | Extracted Arm. Wheel | -9/Materials | Extracted Transmission Jammer | -7/Zion | Archive Mak. System Shield | -7/Zion | Archive Force Field | -7/Zion | Archive Imp. Trap Scanner | -7/Zion | Archive Imp. Salvage Targeting Computer | -7/Zion | Archive Bore Cannon | -7/Zion | Archive Imp. EM Pulse Cannon | -7/Zion | Archive Mak. Trap Scanner | -7/Zion | Archive Adv. System Shield | -7/Zion | Archive Imp. Field Recycling Unit | -7/Zion | Archive Adv. Terrain Scanner | -7/Zion | Archive Thermic Laser | -7/Zion | Archive Launcher Guidance Computer | -7/Zion | Archive Hvy. Plasma Cannon | -7/Zion | Archive Mak. Flight Unit | -7/Zion | Archive Exp. Signal Interpreter | -4/Factory | Z-intel Stealth Drone Bay | -4/Factory | Z-intel Cld. Phase Cannon | -4/Factory | Z-intel Antimatter Cannon | -4/Factory | Z-intel Enh. Force Rifle | -4/Factory | Z-intel Enh. Fission Core | -4/Factory | Z-intel Scatter Rocket Array | -4/Factory | Z-intel Hvy. Gatling Laser | -4/Factory | Z-intel Exp. Terrain Scan Processor | -4/Factory | Z-intel Adv. Matter Compressor | -4/Factory | Z-intel Cld. Impulse Thruster | -2/Research | Z-intel Cld. Field Propulsion Drive | -2/Research | Z-intel Beam Splitter | -2/Research | Z-intel Adv. Particle Accelerator | -2/Research | Z-intel Lrn. Phase Cannon | -2/Research | Z-intel Exp. Transmission Jammer | -2/Research | Z-intel Adv. Quantum Shading Machine | -2/Research | Z-intel Exp. Gyrokinetic Inverter | -2/Research | Z-intel Exp. Optical Array | -2/Research | Z-intel Imp. Quantum Reactor | -2/Research | Z-intel Adv. Thermal Defense Suite | -2/Testing | Archive Prc. Energy Filter | -2/Testing | Archive Exp. Matter Compressor | -2/Testing | Archive Centrium Light Armor Plating | -2/Testing | Archive Robot Schematics ------------------ L-41 Fighter | -7/Zion | Archive K-01 Serf | -7/Zion | Archive I-36 Angel | -6/Hub_04(d) | Z-intel T-07 Excavator | -6/Hub_04(d) | Z-intel A-02 Transporter | -6/Hub_04(d) | Z-intel Fabricated ------------ Hvy. Plasma Cannon | x2 | -6/Factory Hvy. Plasma Cannon | x2 | -6/Factory I-36 Angel | x1 | -5/Factory I-36 Angel | x1 | -5/Factory I-36 Angel | x1 | -5/Factory Antimatter Cannon | x1 | -4/Factory Adv. Matter Compressor | x1 | -3/Research I-36 Angel | x1 | -3/Armory L-41 Fighter | x3 | -3/Armory | Authchip L-41 Fighter | x3 | -3/Armory | Authchip Alien Tech Used ----------------- None Achievements -------------- 30k Club 40k Club A Powerful Ally? Achiever Adventurer Charge!!! Collateral Damage Explorer Freeware Friend Of Zion Generalissimo Giant Slayer Help From High Places Heroic Deeds Maybe Next Time I'll Detach My Launcher Oh No You Don't! Prison Break Project G-00 Quick And Dirty Remodeling Revising The Future Robot Respite Sniper Tank The One Turtlemind War Machine Challenges ------------ None Game ------ Seed SiegeThrowingRecalibrator Manual? 0 Play Time 03:40:17 Cumulative 12.5 hours Start 2024.04.06 @ 22:17:29 End 2024.04.07 @ 01:59:38 Sessions 3 Manual Loads 0 Difficulty Explorer Special Mode None Game No. 7 Rogue 0 Adventurer 0 Explorer 7 Win Type - Total 1 Types 0/0/0/1/0/0/0/0/0 Lore% 16 Gallery% 21 Achievement% 32 Wizard Run 0 Options --------- Layout 1 ASCII 0 Keyboard 0 Movement Mouse Keybinds 0 Fullscreen 1 Font 32/SmallcapsGlow Map View 50x35 Zoom Use 0% Tactical HUD 1 Map Filters NONE Filters NONE Steam 1 RUN: dc9fb46e-4e6d-4a97-aa76-c7eb23ffa7c2